Workbook

Sheet المصروف
A1: رقم السيارة | B1: اسم المحطة | C1: تاريخ التحميل | D1: رقم السيارة | E1: اسم السائق | F1: القياسي (المفرغ) | G1: رقم المستند | H1: استحقاق المحطة | I1: السلف | J1: النقص | K1: مبلغ النقص | L1: صافي الاستحقاق | M1: طلب قديم
A2: 508 | B2: الصابر | C2: 2018-11-01 | D2: 508 | E2: ضاري | F2: 41584 | G2: 428468 | H2: 500000 | I2: 100000 | K2: =J2*750 -> 0 | L2: =H2-I2-K2 -> 400000
A3: 508 | B3: المحبة | C3: 2018-11-07 | D3: 508 | E3: ضاري | F3: 41702 | G3: 428164 | H3: 500000 | I3: 150000 | K3: 0 | L3: 350000
A4: 508 | B4: السلام | C4: 2018-11-10 | D4: 508 | E4: ضاري | F4: 41656 | G4: 428029 | H4: 500000 | I4: 0 | K4: 0 | L4: 500000
A5: 828 | B5: تاج القدس | C5: 2018-11-25 | D5: 828 | E5: ليث | F5: 42742 | G5: 496947 | H5: 400000 | I5: 200000 | K5: 0 | L5: 200000
A6: 828 | B6: الرحالية | C6: 2018-11-29 | D6: 828 | E6: ليث | F6: 42703 | G6: 511616 | H6: 400000 | I6: 100000 | K6: 0 | L6: 300000
A7: 1419 | B7: الجوهرة | C7: 2018-11-03 | D7: 1419 | E7: حسين | F7: 42501 | G7: 476721 | H7: 600000 | I7: 150000 | K7: 0 | L7: 450000
A8: 1419 | B8: الخالدية | C8: 2018-11-13 | D8: 1419 | E8: حسين | F8: 42695 | G8: 486893 | H8: 400000 | I8: 50000 | K8: 0 | L8: 350000 | M8: 50000
H9: =SUM(H2:H14) -> 3650000 | I9: =SUM(I2:I14) -> 950000 | J9: =SUM(J2:J14) -> 0 | K9: =SUM(K2:K14) -> 0 | L9: 2700000
K10: طلب قديم
K11: المجموع الكلي
L12: 0
A13: 508 | B13: الخالدية | C13: 2018-11-20 | E13: ضاري | H13: 400000 | I13: 350000 | L13: 50000
A14: 1419 | B14: الأمن | C14: 2018-11-21 | D14: 1419 | E14: حسين | F14: 42785 | G14: 736191 | H14: 350000 | I14: 200000 | K14: =J14*750 -> 0 | L14: =H14-I14-K14 -> 150000

Sheet تصفية-الخلاصة
A1: رقم السيارة | B1: اسم السائق | C1: مجموع الاستحقاق | D1: مجموع السلف المستلمة | E1: صافي المبلغ المتبقي | F1: عدد النقلات | G1: تواريخ التحميل | H1: أسماء المحطات
A2: 508 | B2: ضاري | C2: =IF($A2<>"",SUMIF(المصروف!$D$2:$D$215,$A2,المصروف!$H$2:$H$215),"") -> 1500000 | D2: =IF($A2<>"",SUMIF(المصروف!$D$2:$D$215,$A2,المصروف!$I$2:$I$215),"") -> 250000 | E2: =C2-D2 -> 1250000 | F2: =COUNTIF(المصروف!$D$2:$D$215,A2) -> 3 | G2: =Lookup_concat($A2,المصروف!$A$2:$A$500,المصروف!$C$2:$C$500) -> 1/11/2018 7/11/2018 10/11/2018 20/11/2018 | H2: =Lookup_concat($A2,المصروف!$A$2:$A$500,المصروف!$B$2:$B$500) -> الصابر المحبة السلام الخالدية
A3: 828 | B3: ليث | C3: =IF($A3<>"",SUMIF(المصروف!$D$2:$D$215,$A3,المصروف!$H$2:$H$215),"") -> 800000 | D3: =IF($A3<>"",SUMIF(المصروف!$D$2:$D$215,$A3,المصروف!$I$2:$I$215),"") -> 300000 | E3: 500000 | F3: =COUNTIF(المصروف!$D$2:$D$215,A3) -> 2 | G3: =Lookup_concat($A3,المصروف!$A$2:$A$500,المصروف!$C$2:$C$500) -> 25/11/2018 29/11/2018 | H3: =Lookup_concat($A3,المصروف!$A$2:$A$500,المصروف!$B$2:$B$500) -> تاج القدس الرحالية
A4: 1419 | B4: حسين | C4: =IF($A4<>"",SUMIF(المصروف!$D$2:$D$215,$A4,المصروف!$H$2:$H$215),"") -> 1350000 | D4: =IF($A4<>"",SUMIF(المصروف!$D$2:$D$215,$A4,المصروف!$I$2:$I$215),"") -> 400000 | E4: 950000 | F4: =COUNTIF(المصروف!$D$2:$D$215,A4) -> 3 | G4: =Lookup_concat($A4,المصروف!$A$2:$A$500,المصروف!$C$2:$C$500) -> 3/11/2018 13/11/2018 21/11/2018 | H4: =Lookup_concat($A4,المصروف!$A$2:$A$500,المصروف!$B$2:$B$500) -> الجوهرة الخالدية الأمن
